bitfinex/quotes_BTCUSD_20240826
["timestamp","ask_amount","ask_price","bid_price","bid_amount"]
[1724682237410,0.2976,63461.0,63460.0,0.94407501]
[1724682237617,0.2976,63461.0,63460.0,0.64609624]
[1724682237862,0.2976,63461.0,63460.0,0.62891601]
[1724682238404,0.2976,63461.0,63460.0,0.64609336]
[1724682238633,0.2986,63461.0,63460.0,0.64609336]
[1724682238897,0.2986,63461.0,63460.0,0.96125236]
[1724682239136,0.2986,63461.0,63460.0,1.06125236]
[1724682239137,0.001,63461.0,63460.0,1.06125236]
[1724682239391,0.003,63461.0,63460.0,1.06125236]
[1724682239631,0.003,63461.0,63460.0,0.27335536]
[1724682239879,0.003,63461.0,63460.0,0.43093436]
[1724682240118,0.003,63461.0,63460.0,0.74609336]
[1724682240364,0.003,63461.0,63460.0,1.06125236]
[1724682240871,0.003,63461.0,63460.0,0.43093436]
[1724682241144,0.003,63461.0,63460.0,1.37641136]
[1724682241388,0.003,63461.0,63460.0,1.39941136]
[1724682241872,0.003,63461.0,63460.0,1.71457036]
[1724682242079,0.003,63461.0,63460.0,1.99947036]
[1724682242317,0.003,63461.0,63460.0,2.32941769]
[1724682242318,0.001,63461.0,63460.0,2.32941769]
[1724682242532,0.001,63461.0,63460.0,2.02225869]
[1724682242757,0.002,63461.0,63460.0,2.02225869]
[1724682242981,0.002,63461.0,63460.0,1.43725201]
[1724682243199,0.001,63461.0,63460.0,1.09930468]
[1724682243494,0.2959,63465.0,63462.0,0.157572]
[1724682243778,0.2959,63465.0,63464.0,0.472708]
[1724682243992,0.2959,63465.0,63464.0,0.74606336]
[1724682244442,0.2959,63465.0,63464.0,0.27335536]
[1724682244662,0.2959,63465.0,63464.0,0.43092436]
[1724682244931,0.2959,63465.0,63464.0,0.74606336]
[1724682245180,0.1696,63472.0,63471.0,0.472656]
[1724682245408,0.1696,63472.0,63471.0,0.74601136]
[1724682245647,0.1696,63472.0,63471.0,0.43090736]
[1724682246141,0.00627649,63477.0,63476.0,0.472618]
[1724682246142,0.17587649,63477.0,63476.0,0.472618]
[1724682246379,0.17587649,63477.0,63476.0,0.96105236]
[1724682246867,0.17587649,63477.0,63476.0,1.27613136]
[1724682247129,0.00627649,63477.0,63476.0,1.35895401]
[1724682247369,0.00627649,63477.0,63476.0,1.68402573]
[1724682247636,0.00627649,63477.0,63476.0,1.39912573]
[1724682247891,0.00627649,63477.0,63476.0,1.37612573]
[1724682248569,0.00627649,63477.0,63476.0,1.39912573]
[1724682249232,0.00627649,63477.0,63476.0,1.71420473]
[1724682250141,0.00627649,63477.0,63476.0,1.37612573]
[1724682250581,0.00627649,63477.0,63476.0,1.3961255]
[1724682250582,0.00727649,63477.0,63476.0,1.3961255]
[1724682250798,0.00727649,63477.0,63476.0,1.4191255]
[1724682251019,0.00727649,63477.0,63476.0,2.0151045]
[1724682251241,0.00727649,63477.0,63476.0,1.71480992]
[1724682251456,0.00727649,63477.0,63476.0,1.43990992]
[1724682251671,0.00727649,63477.0,63476.0,1.10183092]
[1724682251890,0.00727649,63477.0,63476.0,1.0870465]
[1724682252107,0.00727649,63477.0,63476.0,1.4021255]
[1724682252547,0.00727649,63477.0,63476.0,1.3891255]
[1724682252996,0.00727649,63477.0,63476.0,2.0121045]
[1724682253203,0.00627649,63477.0,63476.0,2.01389]
[1724682253419,0.00627649,63477.0,63476.0,2.014714]
[1724682254086,0.00627649,63477.0,63476.0,2.040714]
[1724682254087,0.00727649,63477.0,63476.0,2.040714]
[1724682254513,0.00727649,63477.0,63476.0,2.026714]
[1724682254725,0.00627649,63477.0,63476.0,3.214714]
[1724682254943,0.00627649,63477.0,63476.0,3.241714]
[1724682255408,0.00627649,63477.0,63476.0,3.65432754]
[1724682255870,0.00627649,63477.0,63476.0,2.641735]
[1724682256079,0.00627649,63477.0,63476.0,2.6039495]
[1724682256742,0.00627649,63477.0,63476.0,2.2888705]
[1724682257189,0.00627649,63477.0,63476.0,2.2758705]
[1724682257412,0.29677649,63477.0,63476.0,1.4881735]
[1724682257627,0.29777649,63477.0,63476.0,2.2758705]
[1724682257842,0.29777649,63477.0,63476.0,2.2898705]
[1724682258058,0.29677649,63477.0,63476.0,1.9607915]
[1724682258270,0.48427649,63477.0,63476.0,1.31799549]
[1724682258484,0.48427649,63477.0,63476.0,1.4881735]
[1724682258691,0.48527649,63477.0,63476.0,1.9747915]
[1724682258906,0.48527649,63477.0,63476.0,2.2758705]
[1724682259377,0.00727649,63477.0,63476.0,2.5909495]
[1724682259815,0.00727649,63477.0,63476.0,2.6019495]
[1724682260459,0.00727649,63477.0,63476.0,2.6139905]
[1724682260687,0.00627649,63477.0,63476.0,1.81229361]
[1724682260912,0.00627649,63477.0,63476.0,2.28491161]
[1724682261127,0.00627649,63477.0,63476.0,2.59999061]
[1724682261345,0.00727649,63477.0,63476.0,2.94806961]
[1724682261573,0.00727649,63477.0,63476.0,2.93706961]
[1724682261821,0.00608688,63477.0,63476.0,2.94106961]
[1724682262026,0.00608688,63477.0,63476.0,2.92706961]
[1724682262449,0.00708688,63477.0,63476.0,1.75506961]
[1724682262953,0.00708688,63477.0,63476.0,2.84103501]
[1724682263158,0.00708688,63477.0,63476.0,2.89268676]
[1724682263594,0.00708688,63477.0,63476.0,3.37386576]
[1724682263807,0.00708688,63477.0,63476.0,3.34190829]
[1724682264031,0.00708688,63477.0,63476.0,3.68893816]
[1724682264032,0.001,63477.0,63476.0,3.68893816]
[1724682264238,0.0004,63479.0,63478.0,0.607734]
[1724682264479,0.46876099,63496.0,63482.0,0.315049]
[1724682264689,0.46876099,63496.0,63483.0,1.39661472]
[1724682264900,0.46876099,63496.0,63483.0,2.44068912]
[1724682265118,0.001,63511.0,63483.0,2.12564512]
[1724682265975,0.001,63512.0,63483.0,2.79518912]
[1724682266189,0.001,63511.0,63483.0,2.801111]
[1724682266405,0.2999,63490.0,63483.0,1.74211472]
[1724682266619,0.2999,63490.0,63483.0,1.75611472]
[1724682267079,0.01007501,63500.0,63483.0,1.75611472]
[1724682267080,0.2999,63498.0,63483.0,2.15610112]
[1724682267491,0.2999,63498.0,63483.0,2.47114512]
[1724682267703,0.2999,63498.0,63483.0,2.49414512]
[1724682267924,0.2999,63498.0,63483.0,2.80918912]
[1724682268179,0.00907501,63500.0,63483.0,3.12818884]
[1724682268606,0.00907501,63500.0,63483.0,3.11418884]
[1724682269044,0.3201,63491.0,63483.0,1.77911472]
[1724682269304,0.3201,63491.0,63483.0,1.76511472]
[1724682269506,0.3201,63491.0,63483.0,2.06615872]
[1724682269927,0.3201,63491.0,63483.0,2.09415872]
[1724682270168,0.20237501,63485.0,63483.0,1.37283201]
[1724682270371,0.20237501,63485.0,63483.0,1.3876146]
[1724682271222,0.20237501,63485.0,63483.0,1.4016146]
[1724682271449,0.00907501,63485.0,63483.0,1.4016146]
[1724682271662,0.00907501,63485.0,63483.0,1.4246146]
[1724682272521,0.00907501,63485.0,63483.0,1.4106146]
[1724682272946,0.00907501,63485.0,63483.0,1.3966146]
[1724682273165,0.00907501,63485.0,63483.0,1.4106146]
[1724682273593,0.00907501,63485.0,63483.0,1.4246146]
[1724682273811,0.00907501,63485.0,63483.0,2.423745]
[1724682274028,0.00907501,63485.0,63483.0,2.437745]
[1724682274485,0.00907501,63485.0,63483.0,2.904889]
[1724682274707,0.00907501,63485.0,63483.0,2.963689]
[1724682275370,0.00907501,63485.0,63483.0,2.99149294]
[1724682275634,1e-08,63484.0,63483.0,2.99149294]
[1724682275847,0.0004,63499.0,63498.0,0.607685]
[1724682276073,0.0004,63499.0,63498.0,2.57666598]
[1724682276302,0.0004,63499.0,63498.0,3.84456957]
[1724682276303,1e-06,63499.0,63498.0,3.84456957]
[1724682276510,1e-08,63500.0,63499.0,0.985092]
[1724682276727,0.19766401,63521.0,63518.0,1.102048]
[1724682276955,0.00906401,63521.0,63518.0,1.3700483]
[1724682277181,0.00906401,63521.0,63518.0,1.09295517]
[1724682277401,0.32446401,63519.0,63518.0,1.04335501]
[1724682278082,0.32446401,63519.0,63518.0,1.38122601]
[1724682278302,0.32446401,63519.0,63518.0,1.40704699]
[1724682278551,0.00946401,63519.0,63518.0,1.40704699]
[1724682278765,0.00946401,63519.0,63518.0,1.42182264]
[1724682278983,0.00946401,63519.0,63518.0,1.73669364]
[1724682279428,0.00946401,63519.0,63518.0,1.73669198]
[1724682279659,0.00946401,63519.0,63518.0,1.72269198]
[1724682280090,0.00946401,63519.0,63518.0,1.73669198]
[1724682280307,0.32346401,63519.0,63518.0,1.42104533]
[1724682280521,0.32346401,63519.0,63518.0,1.39304533]
[1724682280754,0.00907501,63548.0,63538.0,0.78693]
[1724682280965,0.46876099,63547.0,63538.0,2.13818573]
[1724682281214,0.00907501,63548.0,63538.0,2.67274932]
[1724682281456,0.00907501,63548.0,63538.0,2.72026864]
[1724682281686,0.00907501,63548.0,63538.0,2.17008573]
[1724682281944,0.1879,63544.0,63538.0,0.25617801]
[1724682282152,0.00447501,63541.0,63540.0,0.472143]
[1724682282377,0.00447501,63541.0,63540.0,0.62832101]
[1724682282595,0.00447501,63541.0,63540.0,0.72832101]
[1724682282821,0.00447501,63541.0,63540.0,1.04308301]
[1724682283923,0.00447501,63541.0,63540.0,1.35784501]
[1724682284837,0.00447501,63541.0,63540.0,1.37184501]
[1724682285059,0.00907501,63548.0,63547.0,1.731951]
[1724682285306,0.00907501,63548.0,63547.0,2.39353541]
[1724682285535,0.00907501,63548.0,63547.0,0.4253547]
[1724682285746,0.00907501,63548.0,63547.0,0.25617801]
[1724682285996,0.01769678,63548.0,63547.0,1.04299501]
[1724682286511,0.00907501,63548.0,63547.0,1.04299501]
[1724682286723,0.00907501,63548.0,63547.0,0.72826801]
[1724682286935,0.00907501,63548.0,63547.0,0.25617801]
[1724682287148,0.01007501,63548.0,63547.0,0.1]
[1724682287371,0.01007501,63548.0,63544.0,0.25737]
[1724682287585,0.00907501,63548.0,63547.0,0.157363]
[1724682287796,0.00907501,63548.0,63547.0,0.72826801]
[1724682288003,0.00907501,63548.0,63547.0,1.04299501]
[1724682288249,0.00907501,63548.0,63547.0,0.75626801]
[1724682288465,0.00907501,63548.0,63547.0,0.74226801]
[1724682289562,0.00907501,63548.0,63547.0,1.05699501]
[1724682290219,0.00907501,63548.0,63547.0,1.37172201]
[1724682290676,0.00907501,63548.0,63547.0,1.39472201]
[1724682290884,0.00907501,63548.0,63547.0,1.40872201]
[1724682291088,0.00907501,63548.0,63547.0,1.72344901]
[1724682291360,0.00907501,63548.0,63547.0,2.13743541]
[1724682291907,0.00907501,63548.0,63547.0,1.82270841]
[1724682292433,0.00907501,63548.0,63547.0,1.83762205]
[1724682292865,0.00907501,63548.0,63547.0,2.15234905]
[1724682293612,0.00907501,63548.0,63547.0,1.83762205]
[1724682293831,0.00907501,63548.0,63547.0,1.38572201]
[1724682294042,0.32687501,63548.0,63547.0,1.07099501]
[1724682294481,0.32687501,63548.0,63537.0,0.157388]
[1724682294482,0.3075,63545.0,63537.0,0.157388]
[1724682294678,0.1813,63536.0,63522.0,0.4139864]
[1724682294945,0.001,63528.0,63523.0,0.624939]
[1724682295169,0.00393478,63535.0,63522.0,0.15617801]
[1724682295170,0.001,63525.0,63522.0,0.15617801]
[1724682295387,0.001,63525.0,63524.0,0.15742]
[1724682295605,0.001,63524.0,63514.0,0.31489]
[1724682295823,0.001,63529.0,63515.0,1.0389254]
[1724682296046,0.001,63528.0,63515.0,0.57016441]
[1724682296259,0.2949,63527.0,63526.0,0.157415]
[1724682296485,0.2959,63527.0,63526.0,0.157415]
[1724682296695,0.001,63525.0,63519.0,0.314864]
[1724682296915,0.1883,63525.0,63524.0,0.011]
[1724682297133,0.5077,63525.0,63524.0,0.011]
[1724682298235,0.2961,63523.0,63514.0,0.157443]
[1724682298454,0.2961,63523.0,63495.0,0.03309154]
[1724682298455,0.2961,63514.0,63498.0,0.01512031]
[1724682298667,0.001,63511.0,63505.0,0.46876099]
[1724682298884,0.001,63511.0,63510.0,0.472366]
[1724682299126,0.2961,63514.0,63513.0,0.78724]
[1724682299367,0.2961,63514.0,63513.0,0.94341801]
[1724682299587,0.2961,63514.0,63513.0,1.04341801]
[1724682299813,0.1804,63522.0,63521.0,0.78714]
[1724682300037,0.3082,63523.0,63522.0,0.157425]
[1724682300243,0.001,63527.0,63526.0,1.101908]
[1724682300429,0.4936,63529.0,63528.0,0.787052]
[1724682300674,0.4936,63529.0,63528.0,1.35805101]
[1724682301176,0.5013,63538.0,63537.0,0.157388]
[1724682301388,0.5013,63538.0,63537.0,0.94312001]
[1724682301603,0.3119,63544.0,63537.0,0.57095501]
[1724682301826,0.3119,63544.0,63539.0,0.314764]
[1724682302039,0.001,63540.0,63537.0,0.1]
[1724682302249,0.3119,63544.0,63537.0,0.57095501]
[1724682302250,0.3129,63544.0,63537.0,0.57095501]
[1724682302467,0.3119,63544.0,63538.0,0.314772]
[1724682302687,0.3119,63544.0,63543.0,0.47212]
[1724682302925,0.3119,63544.0,63543.0,0.62829801]
[1724682303155,0.3119,63544.0,63543.0,0.31355101]
[1724682303388,0.3159,63544.0,63543.0,0.31355101]
[1724682303849,0.3199,63544.0,63543.0,1.35779201]
[1724682304056,0.19847501,63548.0,63547.0,0.786817]
[1724682304264,0.19847501,63548.0,63547.0,0.96599501]
[1724682304455,0.00907501,63548.0,63547.0,1.28072201]
[1724682304963,0.00907501,63548.0,63547.0,1.38072201]
[1724682305201,0.00907501,63548.0,63547.0,0.25617801]
[1724682305431,0.00907501,63548.0,63547.0,0.1]
[1724682305658,0.00888559,63548.0,63543.0,0.002]
[1724682305871,0.00888559,63548.0,63545.0,0.157368]
[1724682306087,0.00888559,63548.0,63547.0,0.157363]
[1724682306308,0.00888559,63548.0,63543.0,0.014]
[1724682306309,0.001,63547.0,63543.0,0.014]
[1724682306522,0.001,63547.0,63544.0,0.15617801]
[1724682306762,0.001,63547.0,63545.0,0.1]
[1724682306980,0.2953,63546.0,63545.0,0.1]
[1724682307200,0.2953,63546.0,63545.0,0.103]
[1724682307877,0.2953,63546.0,63545.0,0.63128301]
[1724682308099,0.00888559,63548.0,63547.0,0.47209]
[1724682308321,0.00888559,63548.0,63547.0,1.06599501]
[1724682308588,0.00888559,63548.0,63547.0,1.38072201]
[1724682309025,0.00888559,63548.0,63547.0,1.69544901]
[1724682309270,0.00888559,63548.0,63547.0,1.72210697]
[1724682309484,0.00888559,63548.0,63547.0,2.45082037]
[1724682309701,0.00888559,63548.0,63547.0,2.74667248]
[1724682309922,0.00888559,63548.0,63547.0,2.75848644]
[1724682310366,0.00988559,63548.0,63547.0,2.76548644]
[1724682310586,0.00988559,63548.0,63547.0,2.45075944]
[1724682310802,0.00888559,63548.0,63547.0,2.45775944]
[1724682311016,0.00888559,63548.0,63547.0,2.77248644]
[1724682311230,0.00888559,63548.0,63547.0,2.75848644]
[1724682311443,0.00888559,63548.0,63547.0,2.77248644]
[1724682312099,0.00888559,63548.0,63547.0,2.12709154]
[1724682312529,0.00888559,63548.0,63547.0,2.14109154]
[1724682312746,0.00888559,63548.0,63547.0,2.12709154]
[1724682313190,0.00888559,63548.0,63547.0,2.1484286]
[1724682313646,0.00888559,63548.0,63547.0,2.1714286]
[1724682313859,0.00888559,63548.0,63547.0,2.1574286]
[1724682314290,0.00888559,63548.0,63547.0,2.5001556]
[1724682314519,0.00888559,63548.0,63547.0,2.4861556]
[1724682314732,0.00888559,63548.0,63547.0,2.7726556]
[1724682315398,0.00888559,63548.0,63547.0,3.0873826]
[1724682315837,0.00888559,63548.0,63547.0,4.3418976]
[1724682316045,0.0004,63559.0,63558.0,1.8300144]
[1724682316315,0.0004,63559.0,63558.0,2.12100637]
[1724682316523,0.0004,63559.0,63558.0,2.74351404]
[1724682316948,0.0004,63559.0,63558.0,2.14234104]
[1724682317159,0.0004,63559.0,63558.0,2.12100398]
[1724682317801,0.0004,63559.0,63558.0,2.13500398]
[1724682318653,0.0004,63559.0,63558.0,2.14979272]
[1724682319117,0.0004,63559.0,63558.0,2.6933508]
[1724682319347,0.0004,63559.0,63558.0,2.7073508]
[1724682319564,0.0004,63559.0,63558.0,3.3085238]
[1724682320258,0.0004,63559.0,63558.0,3.2805238]
[1724682320467,0.0004,63559.0,63558.0,3.5833828]
[1724682320693,0.0004,63559.0,63558.0,3.6113828]
[1724682320911,0.0004,63559.0,63558.0,3.5973828]
[1724682321122,0.0004,63559.0,63558.0,3.6113828]
[1724682321767,0.0004,63559.0,63558.0,3.6429628]
[1724682322219,0.0004,63559.0,63558.0,3.3261038]
[1724682322859,0.0004,63559.0,63558.0,3.3401038]
[1724682323079,0.0004,63559.0,63558.0,3.32829223]
[1724682323293,0.0004,63559.0,63558.0,3.31210322]
[1724682323727,0.0004,63559.0,63558.0,3.34010322]
[1724682323978,0.0004,63559.0,63558.0,3.32610322]
[1724682324723,0.0004,63559.0,63558.0,3.35725154]
[1724682324933,0.0004,63579.0,63578.0,1.101009]
[1724682325148,0.0004,63579.0,63578.0,1.38018701]
[1724682325362,0.0004,63579.0,63578.0,1.39733533]
[1724682326015,0.0004,63579.0,63578.0,2.02648333]
[1724682326228,0.0004,63579.0,63578.0,2.07149337]
[1724682326480,0.0004,63579.0,63578.0,1.69476101]
[1724682326689,0.0004,63579.0,63578.0,1.72371521]
[1724682326898,0.0004,63579.0,63578.0,1.73771521]
[1724682327409,0.0004,63579.0,63578.0,2.41187325]
[1724682327647,0.3045,63598.0,63585.0,0.786347]
[1724682327854,0.3045,63598.0,63585.0,2.12573528]
[1724682328070,0.3045,63598.0,63585.0,2.72487428]
[1724682328283,0.3045,63598.0,63585.0,2.73668149]
[1724682328502,0.3045,63598.0,63585.0,2.77191907]
[1724682329383,0.1967,63600.0,63592.0,1.415268]
[1724682329596,0.00906401,63623.0,63592.0,2.64168949]
[1724682329597,0.3005,63608.0,63592.0,2.64168949]
[1724682329861,0.3005,63608.0,63592.0,2.32718549]
[1724682330081,0.3005,63608.0,63592.0,2.13738549]
[1724682331692,0.3005,63608.0,63598.0,1.100662]
[1724682331899,0.3005,63608.0,63598.0,1.71146088]
[1724682332115,0.3005,63608.0,63598.0,1.76887605]
[1724682332325,0.3005,63608.0,63598.0,1.72326809]
[1724682332535,0.3005,63608.0,63598.0,1.76887605]
[1724682332768,0.4761,63614.0,63598.0,2.36795105]
[1724682333044,0.4761,63614.0,63598.0,2.38194368]
[1724682333328,0.4761,63614.0,63611.0,1.414849]
[1724682333609,0.4761,63614.0,63611.0,2.12515456]
[1724682333863,0.4761,63614.0,63611.0,1.85635152]
[1724682334132,0.30317501,63612.0,63611.0,0.27331916]
[1724682334339,0.30317501,63612.0,63611.0,0.72779401]
[1724682334808,0.30317501,63612.0,63611.0,0.25617801]
[1724682335075,0.30317501,63612.0,63611.0,0.74179401]
[1724682335319,0.30317501,63612.0,63611.0,0.27017801]
[1724682335606,0.30317501,63612.0,63611.0,0.25617801]
[1724682336289,0.31146809,63612.0,63611.0,0.27017801]
[1724682336732,0.31146809,63612.0,63611.0,0.25617801]
[1724682336947,0.31146809,63612.0,63611.0,0.26217801]
[1724682337155,0.50636809,63612.0,63611.0,0.12]
[1724682337364,0.50636809,63612.0,63611.0,0.006]
[1724682337620,0.50636809,63612.0,63611.0,0.106]
[1724682337863,0.50636809,63612.0,63611.0,0.113]
[1724682338083,0.50536809,63612.0,63611.0,0.26917801]
[1724682338307,0.49707501,63612.0,63611.0,0.26217801]
[1724682338530,0.5054999,63612.0,63611.0,0.26317801]
[1724682338750,0.5064999,63612.0,63611.0,0.113]
[1724682339200,0.5054999,63612.0,63611.0,0.26917801]
[1724682339421,0.5054999,63612.0,63611.0,0.73479401]
[1724682339863,0.49707501,63612.0,63611.0,0.74079401]
[1724682340299,0.49707501,63612.0,63611.0,1.05520501]
[1724682340300,0.50549977,63612.0,63611.0,1.05520501]
[1724682340551,0.00907501,63612.0,63611.0,1.80660241]
[1724682340784,0.01749987,63612.0,63611.0,1.81680531]
[1724682341000,0.00907501,63612.0,63611.0,1.81680531]
[1724682341215,0.00907501,63612.0,63611.0,1.82135094]
[1724682341705,0.00907501,63612.0,63611.0,3.11313184]
[1724682341911,0.0004,63619.0,63618.0,1.8286784]
[1724682342129,0.0004,63619.0,63618.0,2.12260951]
[1724682342351,0.0004,63619.0,63618.0,2.16821747]
[1724682342603,0.0004,63619.0,63618.0,2.15346437]
[1724682342850,0.00906401,63623.0,63618.0,2.15346437]
[1724682342851,0.00906401,63623.0,63622.0,1.414602]
[1724682343130,0.00906401,63623.0,63622.0,2.05988001]
[1724682343388,0.0125137,63657.0,63638.0,1.414246]
[1724682343389,0.2934,63647.0,63638.0,1.414246]
[1724682343650,0.0125137,63657.0,63656.0,1.07007]
[1724682343897,0.0125137,63657.0,63656.0,2.26861041]
[1724682343898,0.00383876,63657.0,63656.0,2.26861041]
[1724682344153,0.01226467,63657.0,63656.0,2.43800141]
[1724682344439,0.00906401,63663.0,63662.0,0.502818]
[1724682344709,0.00032834,63663.0,63662.0,1.72447301]
[1724682345231,0.00032834,63663.0,63662.0,1.92447301]
[1724682345504,0.00032834,63663.0,63662.0,2.74808997]
[1724682346109,0.00032834,63663.0,63662.0,3.7641163]
[1724682346331,0.00011,63672.0,63671.0,1.8590794]
[1724682346570,0.2898,63701.0,63678.0,1.5132664]
[1724682346792,0.2888,63701.0,63678.0,2.52051081]
[1724682347030,0.2888,63701.0,63678.0,2.56156877]
[1724682347265,0.313899,63715.0,63678.0,1.83350237]
[1724682347266,0.3136,63685.0,63678.0,1.83350237]
[1724682347498,0.1875,63683.0,63678.0,1.51942237]
[1724682347727,0.1875,63683.0,63678.0,1.20534237]
[1724682347972,0.00872606,63679.0,63678.0,1.22016357]
[1724682348419,0.00872606,63679.0,63678.0,1.23416357]
[1724682348639,0.0004,63679.0,63678.0,1.23416357]
[1724682348855,0.0004,63679.0,63678.0,1.53424357]
[1724682349070,0.0004,63679.0,63678.0,1.54824357]
[1724682349727,0.0004,63679.0,63678.0,1.84832357]
[1724682349918,0.1875,63689.0,63688.0,0.785075]
[1724682350129,0.1875,63689.0,63688.0,0.75022301]
[1724682350130,0.16446132,63689.0,63688.0,0.75022301]
[1724682350331,0.16446132,63689.0,63688.0,0.25617801]
[1724682350332,0.47906132,63689.0,63688.0,0.25617801]
[1724682350742,0.47806132,63689.0,63688.0,0.25617801]
[1724682351605,0.47806132,63689.0,63688.0,0.76422301]
[1724682351802,0.47906132,63689.0,63688.0,0.42719301]
[1724682352015,0.47906132,63689.0,63688.0,0.25617801]
[1724682352241,0.47906132,63689.0,63688.0,0.1]
[1724682352450,0.2959,63674.0,63670.0,0.01530646]
[1724682352662,0.001,63672.0,63671.0,0.15617801]
[1724682352888,0.3014,63672.0,63671.0,0.15617801]
[1724682353108,0.4909,63672.0,63671.0,0.15617801]
[1724682353517,0.4899,63672.0,63671.0,0.15617801]
[1724682353722,0.4909,63672.0,63671.0,0.15617801]
[1724682354567,0.4899,63672.0,63671.0,0.78440601]
[1724682354768,0.4899,63672.0,63671.0,0.94146301]
[1724682354972,0.4899,63672.0,63671.0,0.62734901]
[1724682355187,0.4899,63672.0,63671.0,0.72734901]
[1724682355406,0.4899,63672.0,63671.0,1.05046301]
[1724682355610,0.4899,63672.0,63671.0,0.72734901]
[1724682355815,0.4899,63672.0,63671.0,0.73834901]
[1724682356021,0.4899,63672.0,63671.0,1.06646301]
[1724682356237,0.3172,63687.0,63671.0,0.83013081]
[1724682356454,0.3172,63687.0,63686.0,0.8850464]
[1724682356675,0.3172,63687.0,63686.0,1.47826441]
[1724682356877,0.3172,63687.0,63686.0,1.48779905]
[1724682357129,0.3172,63687.0,63686.0,1.81137369]
[1724682357541,0.5013,63693.0,63692.0,1.099038]
[1724682357747,0.5013,63693.0,63692.0,1.37821601]
[1724682358157,0.5013,63693.0,63692.0,0.72719401]
[1724682358392,0.5023,63693.0,63692.0,0.25617801]
[1724682358597,0.50936554,63693.0,63692.0,0.25617801]
[1724682358804,0.50936554,63693.0,63692.0,0.42718301]
[1724682359231,0.50936554,63693.0,63692.0,0.27017801]
[1724682359437,0.50936554,63693.0,63692.0,0.28317801]
[1724682360072,0.66636854,63693.0,63692.0,0.027]
[1724682360273,0.001,63683.0,63681.0,0.1]
[1724682360504,0.31741097,63682.0,63681.0,0.471097]
[1724682360719,0.49781097,63682.0,63681.0,0.1]
[1724682360993,0.49781097,63682.0,63656.0,0.4139864]
[1724682360994,0.001,63670.0,63656.0,0.4139864]
[1724682361208,0.1904,63669.0,63666.0,0.157068]
[1724682361624,0.00803565,63668.0,63667.0,0.15617801]
[1724682361834,0.001,63666.0,63662.0,0.000823]
[1724682362041,0.00703565,63668.0,63663.0,0.15617801]
[1724682362245,0.1894,63669.0,63668.0,0.157064]
[1724682362455,0.1894,63669.0,63668.0,0.785322]
[1724682362687,0.4139864,63716.0,63668.0,0.785322]
[1724682362688,0.1927,63679.0,63678.0,0.7852]
[1724682362889,0.1927,63679.0,63678.0,0.94137801]
[1724682363333,0.1927,63679.0,63678.0,0.25617801]
[1724682363334,0.1937,63679.0,63678.0,0.25617801]
[1724682363548,0.1937,63679.0,63678.0,0.1]
[1724682363754,0.4861,63679.0,63678.0,0.1]
[1724682364183,0.2924,63678.0,63669.0,0.314122]
[1724682364402,0.001,63675.0,63674.0,0.157049]
[1724682364649,0.00825877,63677.0,63674.0,0.25617801]
[1724682364883,0.001,63676.0,63675.0,0.25617801]
[1724682365095,0.2924,63678.0,63675.0,0.41322501]
[1724682365096,0.001,63677.0,63675.0,0.41322501]
[1724682365302,0.001,63676.0,63675.0,0.25617801]
[1724682365512,0.001,63676.0,63675.0,0.1]
[1724682365925,0.001,63676.0,63674.0,0.009]
[1724682366150,0.4997,63675.0,63674.0,0.17317801]
[1724682366339,0.4997,63675.0,63674.0,0.16417801]
[1724682366555,0.1579353,63682.0,63662.0,0.000823]
[1724682366556,0.001,63663.0,63662.0,0.000823]
[1724682367178,0.303,63664.0,63662.0,0.15700101]
[1724682367393,0.303,63664.0,63663.0,0.62740901]
[1724682367600,0.303,63664.0,63663.0,0.15617801]
[1724682367601,0.304,63664.0,63663.0,0.15617801]
[1724682367810,0.304,63664.0,63663.0,0.31325501]
[1724682368032,0.304,63664.0,63663.0,0.62740901]
[1724682368226,0.304,63664.0,63663.0,0.41325501]
[1724682368433,0.303,63664.0,63663.0,0.25617801]
[1724682368644,0.303,63664.0,63663.0,1.04156301]
[1724682368883,0.2925,63670.0,63669.0,0.471186]
[1724682369100,0.0019053,63682.0,63670.0,0.5369864]
[1724682369101,0.2925,63679.0,63670.0,0.5369864]
[1724682369323,0.2925,63679.0,63678.0,1.09928]
[1724682369535,0.0009053,63682.0,63681.0,0.785162]
[1724682369751,0.0009053,63682.0,63681.0,0.75027501]
[1724682369963,0.0009053,63682.0,63681.0,1.06434001]
[1724682370175,0.0009053,63682.0,63681.0,1.37840501]
[1724682371515,0.0009053,63682.0,63681.0,1.06434001]
[1724682371941,0.0009053,63682.0,63681.0,0.27917801]
[1724682372159,0.1931053,63682.0,63681.0,0.27017801]
[1724682372369,0.4804053,63682.0,63681.0,0.27017801]
[1724682372598,0.0019053,63682.0,63681.0,1.06934001]
[1724682372809,0.0019053,63682.0,63681.0,1.38340501]
[1724682373239,0.0019053,63682.0,63681.0,1.06934001]
[1724682373449,0.0009053,63682.0,63681.0,1.05534001]
[1724682373662,1.0009053,63682.0,63681.0,1.07834001]
[1724682373871,1.0019053,63682.0,63681.0,0.77327501]
[1724682374097,1.0019053,63682.0,63681.0,0.61624301]
[1724682374311,1.0019053,63682.0,63681.0,1.38740501]
[1724682374803,1.0019053,63682.0,63681.0,1.07334001]
[1724682375029,1.2940053,63682.0,63681.0,0.009]
[1724682375246,1.2940053,63682.0,63681.0,0.021]
[1724682375485,1.2940053,63682.0,63681.0,0.33421001]
[1724682375699,1.2920053,63682.0,63681.0,0.94134001]
[1724682375918,1.2920053,63682.0,63681.0,0.62727501]
[1724682376134,1.2930053,63682.0,63681.0,0.96834001]
[1724682376346,1.2930053,63682.0,63681.0,1.06834001]
[1724682376554,1.0009053,63682.0,63681.0,1.07734001]
[1724682376975,1.0019053,63682.0,63681.0,1.08634001]
[1724682377608,1.0019053,63682.0,63681.0,1.40040501]
[1724682377828,0.9969053,63682.0,63681.0,1.08634001]
[1724682378454,0.9969053,63682.0,63681.0,1.07334001]
[1724682378664,0.9969053,63682.0,63681.0,1.08234001]
[1724682379304,0.9969053,63682.0,63681.0,1.39640501]
[1724682379515,0.9969053,63682.0,63681.0,1.08234001]
[1724682380156,1.3083053,63682.0,63681.0,0.76827501]
[1724682380367,1.3083053,63682.0,63681.0,0.44521001]
[1724682380368,1.4874053,63682.0,63681.0,0.44521001]
[1724682380582,1.4884053,63682.0,63681.0,0.009]
[1724682380800,1.4894053,63682.0,63664.0,0.314146]
[1724682381015,0.001,63668.0,63665.0,0.15617801]
[1724682381226,0.1801,63666.0,63665.0,0.15617801]
[1724682381470,0.1801,63666.0,63665.0,0.62739401]